[Event "GrandPrix_30.05"]
[Site "Chess.com"]
[Date "2020.05.30"]
[Round "4"]
[White "Grandelicious"]
[Black "Sunerorlater"]
[Result "1/2-1/2"]
[WhiteElo "2548"]
[BlackElo "2260"]
[TimeControl "600+2"]
[EndTime "9:54:15 PDT"]
[Termination "Game drawn by agreement"]

1. Nf3 {[%clk 0:10:01.9]} 1... d5 {[%clk 0:09:54.4]} 2. g3 {[%clk 0:10:03.1]}
2... g6 {[%clk 0:09:54.6]} 3. c4 {[%clk 0:10:03.5]} 3... dxc4 {[%clk 0:09:53.9]}
4. Na3 {[%clk 0:10:05]} 4... Bg7 {[%clk 0:09:51.2]} 5. Nxc4 {[%clk 0:10:06.5]}
5... Nc6 {[%clk 0:09:52]} 6. d3 {[%clk 0:10:08.1]} 6... e5 {[%clk 0:09:50.2]} 7.
Bd2 {[%clk 0:10:08.8]} 7... Nge7 {[%clk 0:09:48.1]} 8. Rc1 {[%clk 0:10:07.6]}
8... O-O {[%clk 0:09:38.5]} 9. b4 {[%clk 0:09:53.8]} 9... a6 {[%clk 0:09:06.5]}
10. Bg2 {[%clk 0:09:52.3]} 10... Re8 {[%clk 0:08:51.6]} 11. O-O {[%clk
0:09:12.3]} 11... h6 {[%clk 0:08:41.5]} 12. a4 {[%clk 0:08:55.7]} 12... Nf5
{[%clk 0:08:41]} 13. Re1 {[%clk 0:08:20.2]} 13... Rb8 {[%clk 0:07:52.2]} 14. Bc3
{[%clk 0:06:00.4]} 14... Nd6 {[%clk 0:06:40.5]} 15. Nxd6 {[%clk 0:05:05.9]}
15... cxd6 {[%clk 0:06:35.4]} 16. b5 {[%clk 0:05:02.2]} 16... axb5 {[%clk
0:06:22.4]} 17. axb5 {[%clk 0:05:04.1]} 17... Ne7 {[%clk 0:06:17.6]} 18. Nd2
{[%clk 0:04:39.3]} 18... Be6 {[%clk 0:05:58]} 19. Nc4 {[%clk 0:04:26.7]} 19...
d5 {[%clk 0:05:37.4]} 20. Na5 {[%clk 0:04:20]} 20... Qb6 {[%clk 0:05:19.5]} 21.
Rb1 {[%clk 0:03:44.3]} 21... Ra8 {[%clk 0:04:53.7]} 22. Qd2 {[%clk 0:03:40.6]}
22... Nf5 {[%clk 0:04:27.2]} 23. e4 {[%clk 0:03:28.2]} 23... dxe4 {[%clk
0:04:23.9]} 24. Bxe4 {[%clk 0:03:30.1]} 24... Nd6 {[%clk 0:04:10.1]} 25. Bg2
{[%clk 0:03:11.6]} 25... Red8 {[%clk 0:03:38.8]} 26. Qe3 {[%clk 0:02:16.7]}
26... Qxe3 {[%clk 0:03:25.2]} 27. fxe3 {[%clk 0:02:14.5]} 27... e4 {[%clk
0:03:19.7]} 28. Bb4 {[%clk 0:01:43.6]} 28... exd3 {[%clk 0:02:36.1]} 29. Nxb7
{[%clk 0:01:42.2]} 29... Nxb7 {[%clk 0:02:24.1]} 30. Bxb7 {[%clk 0:01:44.1]}
30... Ra2 {[%clk 0:02:14.2]} 31. Rbd1 {[%clk 0:00:23]} 31... Rb2 {[%clk
0:00:49]} 32. Ba5 {[%clk 0:00:23.7]} 32... Rb8 {[%clk 0:00:49.2]} 33. Bc6 {[%clk
0:00:23.3]} 33... R8xb5 {[%clk 0:00:50.1]} 34. Bxb5 {[%clk 0:00:22.3]} 34...
Rxb5 {[%clk 0:00:50.5]} 35. Bd2 {[%clk 0:00:19.8]} 35... Rb2 {[%clk 0:00:48.2]}
36. Bc1 {[%clk 0:00:19.2]} 36... Rb3 {[%clk 0:00:40.7]} 37. e4 {[%clk 0:00:19]}
37... Bg4 {[%clk 0:00:33.5]} 38. Rd2 {[%clk 0:00:20.1]} 38... Be2 {[%clk
0:00:21.2]} 39. Rexe2 {[%clk 0:00:17.4]} 39... dxe2 {[%clk 0:00:22.4]} 40. Rxe2
{[%clk 0:00:19.3]} 40... Rb1 {[%clk 0:00:20.8]} 41. Rc2 {[%clk 0:00:20.5]} 41...
Bb2 {[%clk 0:00:22]} 42. Rxb2 {[%clk 0:00:20.6]} 42... Rxc1+ {[%clk 0:00:23.2]}
43. Kf2 {[%clk 0:00:21.9]} 1/2-1/2

[Event "GrandPrix_30.05"]
[Site "Chess.com"]
[Date "2020.05.30"]
[Round "4"]
[White "RovenVogel"]
[Black "Zubrrr"]
[Result "1/2-1/2"]
[WhiteElo "2442"]
[BlackElo "2564"]
[TimeControl "600+2"]
[EndTime "9:54:22 PDT"]
[Termination "Game drawn by repetition"]

1. d4 {[%clk 0:10:01.9]} 1... f5 {[%clk 0:09:56.3]} 2. g3 {[%clk 0:09:33.6]}
2... Nf6 {[%clk 0:09:56.9]} 3. Bg2 {[%clk 0:09:33.1]} 3... g6 {[%clk 0:09:58.1]}
4. c3 {[%clk 0:09:27.3]} 4... Bg7 {[%clk 0:09:56.3]} 5. Qb3 {[%clk 0:09:26.3]}
5... Nc6 {[%clk 0:09:06.5]} 6. Bg5 {[%clk 0:07:57.2]} 6... e6 {[%clk 0:07:44.7]}
7. d5 {[%clk 0:07:06.7]} 7... exd5 {[%clk 0:07:23.3]} 8. Bxd5 {[%clk 0:07:05.6]}
8... Qe7 {[%clk 0:07:11.7]} 9. Nf3 {[%clk 0:06:55.2]} 9... h6 {[%clk 0:05:45.1]}
10. Bxf6 {[%clk 0:06:54.4]} 10... Qxf6 {[%clk 0:05:43.5]} 11. Na3 {[%clk
0:05:26.5]} 11... Ne7 {[%clk 0:02:40.5]} 12. Nb5 {[%clk 0:05:24.6]} 12... Nxd5
{[%clk 0:02:38.2]} 13. Qxd5 {[%clk 0:05:24.9]} 13... c6 {[%clk 0:02:36.6]} 14.
Nd6+ {[%clk 0:05:25.6]} 14... Ke7 {[%clk 0:02:37.5]} 15. Nxc8+ {[%clk
0:05:26.5]} 15... Rhxc8 {[%clk 0:02:26.5]} 16. Qb3 {[%clk 0:05:20.9]} 16... b6
{[%clk 0:02:02.7]} 17. O-O {[%clk 0:05:04.7]} 17... d5 {[%clk 0:02:03.5]} 18.
Rad1 {[%clk 0:04:53.7]} 18... Kf8 {[%clk 0:01:47.2]} 19. c4 {[%clk 0:04:43.3]}
19... Qxb2 {[%clk 0:01:39.1]} 20. Qa4 {[%clk 0:03:58]} 20... Qxe2 {[%clk
0:01:18.2]} 21. Qa3+ {[%clk 0:03:48.3]} 21... Kg8 {[%clk 0:01:16.2]} 22. cxd5
{[%clk 0:03:44]} 22... cxd5 {[%clk 0:01:17.2]} 23. Nh4 {[%clk 0:03:44.5]} 23...
Qe6 {[%clk 0:00:53]} 24. Rfe1 {[%clk 0:03:43.7]} 24... Qf6 {[%clk 0:00:18.7]}
25. Rxd5 {[%clk 0:03:39.6]} 25... Rd8 {[%clk 0:00:18.7]} 26. Qb3 {[%clk
0:03:38.5]} 26... Kh7 {[%clk 0:00:12.8]} 27. Rxd8 {[%clk 0:03:33.4]} 27... Rxd8
{[%clk 0:00:14.7]} 28. Re6 {[%clk 0:03:34.1]} 28... Qa1+ {[%clk 0:00:07.7]} 29.
Kg2 {[%clk 0:03:35.7]} 29... Rd1 {[%clk 0:00:09]} 30. Nf3 {[%clk 0:03:25.7]}
30... Rd7 {[%clk 0:00:06.8]} 31. Re8 {[%clk 0:03:25.5]} 31... h5 {[%clk
0:00:05.6]} 32. Ng5+ {[%clk 0:03:16]} 32... Kh6 {[%clk 0:00:06.8]} 33. Qe3
{[%clk 0:02:58.7]} 33... Qd4 {[%clk 0:00:06.1]} 34. Qc1 {[%clk 0:01:49.4]} 34...
Qd2 {[%clk 0:00:06.5]} 35. Nf7+ {[%clk 0:00:35.4]} 35... Kh7 {[%clk 0:00:07.2]}
36. Ng5+ {[%clk 0:00:20.8]} 36... Kh6 {[%clk 0:00:07.7]} 37. Nf7+ {[%clk
0:00:11.1]} 37... Kh7 {[%clk 0:00:08.7]} 38. Ng5+ {[%clk 0:00:09.7]} 38... Kh6
{[%clk 0:00:09.7]} 1/2-1/2

[Event "GrandPrix_30.05"]
[Site "Chess.com"]
[Date "2020.05.30"]
[Round "4"]
[White "Salnaa"]
[Black "EvgenyPigusov"]
[Result "0-1"]
[WhiteElo "2155"]
[BlackElo "2294"]
[TimeControl "600+2"]
[EndTime "9:54:30 PDT"]
[Termination "EvgenyPigusov won by resignation"]

1. d4 {[%clk 0:10:01.9]} 1... Nf6 {[%clk 0:09:55.9]} 2. c4 {[%clk 0:10:02.8]}
2... c5 {[%clk 0:09:54.9]} 3. d5 {[%clk 0:10:03.3]} 3... e6 {[%clk 0:09:56.2]}
4. Nc3 {[%clk 0:10:03.5]} 4... exd5 {[%clk 0:09:57.5]} 5. cxd5 {[%clk
0:10:05.4]} 5... d6 {[%clk 0:09:58.9]} 6. e4 {[%clk 0:10:06.5]} 6... g6 {[%clk
0:09:59.5]} 7. f4 {[%clk 0:10:07.6]} 7... Bg7 {[%clk 0:09:59.5]} 8. Bb5+ {[%clk
0:10:08.6]} 8... Nfd7 {[%clk 0:10:00.2]} 9. a4 {[%clk 0:10:08.5]} 9... O-O
{[%clk 0:09:59.9]} 10. Nf3 {[%clk 0:10:08.8]} 10... Na6 {[%clk 0:10:00.3]} 11.
O-O {[%clk 0:10:09]} 11... Nb4 {[%clk 0:09:51]} 12. Re1 {[%clk 0:10:02]} 12...
a6 {[%clk 0:09:40.9]} 13. Bf1 {[%clk 0:10:00]} 13... Re8 {[%clk 0:09:23]} 14.
Be3 {[%clk 0:09:49.2]} 14... Nf6 {[%clk 0:09:04.2]} 15. Bf2 {[%clk 0:09:50]}
15... Bg4 {[%clk 0:08:25.4]} 16. Rc1 {[%clk 0:08:42.7]} 16... Rc8 {[%clk
0:06:52.3]} 17. Bc4 {[%clk 0:07:21.7]} 17... Nh5 {[%clk 0:06:21.4]} 18. h3
{[%clk 0:07:05.8]} 18... Bd7 {[%clk 0:06:16.8]} 19. g3 {[%clk 0:04:44.9]} 19...
Bxh3 {[%clk 0:06:07.7]} 20. Ng5 {[%clk 0:04:43.8]} 20... Bd7 {[%clk 0:05:10.2]}
21. Bf1 {[%clk 0:01:42]} 21... c4 {[%clk 0:04:10.2]} 22. Qd2 {[%clk 0:01:24.1]}
22... h6 {[%clk 0:02:29.5]} 23. Nf3 {[%clk 0:01:24.2]} 23... Nf6 {[%clk
0:02:29.8]} 24. e5 {[%clk 0:01:01.1]} 24... dxe5 {[%clk 0:02:21.8]} 25. fxe5
{[%clk 0:01:03]} 25... Ng4 {[%clk 0:02:08.6]} 26. Bd4 {[%clk 0:01:03.6]} 26...
Bf5 {[%clk 0:02:04.3]} 27. d6 {[%clk 0:00:59.5]} 27... Nd3 {[%clk 0:01:33.9]}
28. Bxd3 {[%clk 0:00:58.9]} 28... cxd3 {[%clk 0:01:30.9]} 29. Nd5 {[%clk
0:00:53]} 29... Rc2 {[%clk 0:01:28.2]} 30. Rxc2 {[%clk 0:00:52.7]} 30... dxc2
{[%clk 0:01:28.9]} 31. Nh4 {[%clk 0:00:54]} 31... Be6 {[%clk 0:01:25.2]} 32.
Ne7+ {[%clk 0:00:53.2]} 32... Rxe7 {[%clk 0:01:25.5]} 33. dxe7 {[%clk
0:00:55.1]} 33... Qxe7 {[%clk 0:01:25.9]} 34. Qxc2 {[%clk 0:00:53.6]} 34... Qb4
{[%clk 0:01:22.4]} 35. Bc3 {[%clk 0:00:52.6]} 35... Qb6+ {[%clk 0:01:23.1]} 36.
Kg2 {[%clk 0:00:17.8]} 36... Ne3+ {[%clk 0:01:22.5]} 37. Rxe3 {[%clk 0:00:18.7]}
37... Qxe3 {[%clk 0:01:21.7]} 38. Qf2 {[%clk 0:00:15.4]} 38... Bd5+ {[%clk
0:01:17.9]} 39. Kg1 {[%clk 0:00:16.6]} 39... Qe4 {[%clk 0:01:15.6]} 40. Ng2
{[%clk 0:00:15.9]} 40... Qxg2+ {[%clk 0:00:59.7]} 41. Qxg2 {[%clk 0:00:16.5]}
41... Bxg2 {[%clk 0:00:59.9]} 42. Kxg2 {[%clk 0:00:18.4]} 42... Kf8 {[%clk
0:01:00.2]} 43. Kf3 {[%clk 0:00:19.7]} 43... Ke7 {[%clk 0:01:00.9]} 44. Ke4
{[%clk 0:00:10.2]} 44... Ke6 {[%clk 0:01:01.9]} 45. b3 {[%clk 0:00:11.8]} 45...
h5 {[%clk 0:01:01.7]} 46. Bd4 {[%clk 0:00:12.4]} 46... Bf8 {[%clk 0:01:01]} 47.
Be3 {[%clk 0:00:09.5]} 47... Be7 {[%clk 0:01:01.4]} 48. Bf4 {[%clk 0:00:09.8]}
48... Bd8 {[%clk 0:01:02]} 49. Be3 {[%clk 0:00:10.7]} 49... Bc7 {[%clk
0:01:02.5]} 50. Bf4 {[%clk 0:00:12.2]} 50... f6 {[%clk 0:01:02]} 51. exf6 {[%clk
0:00:13.1]} 51... Bxf4 {[%clk 0:01:02.8]} 52. f7 {[%clk 0:00:13.2]} 52... Kxf7
{[%clk 0:01:03.6]} 0-1

[Event "GrandPrix_30.05"]
[Site "Chess.com"]
[Date "2020.05.30"]
[Round "4"]
[White "v-kazakouski"]
[Black "payto1"]
[Result "1-0"]
[WhiteElo "2389"]
[BlackElo "2170"]
[TimeControl "600+2"]
[EndTime "9:54:31 PDT"]
[Termination "v-kazakouski won by resignation"]

1. d4 {[%clk 0:10:00.7]} 1... Nf6 {[%clk 0:09:54.1]} 2. Nf3 {[%clk 0:09:58.8]}
2... b6 {[%clk 0:09:54.5]} 3. c4 {[%clk 0:09:57]} 3... e6 {[%clk 0:09:54.6]} 4.
g3 {[%clk 0:09:56.2]} 4... Bb7 {[%clk 0:09:55.5]} 5. Bg2 {[%clk 0:09:56.2]} 5...
g6 {[%clk 0:09:56.9]} 6. Qc2 {[%clk 0:08:45.5]} 6... Bg7 {[%clk 0:09:53.9]} 7.
Nc3 {[%clk 0:08:46]} 7... d5 {[%clk 0:09:49.1]} 8. Ne5 {[%clk 0:08:31.4]} 8...
O-O {[%clk 0:09:46.1]} 9. O-O {[%clk 0:08:30.6]} 9... Nbd7 {[%clk 0:08:03]} 10.
Rd1 {[%clk 0:07:54.3]} 10... a6 {[%clk 0:07:44.4]} 11. Bf4 {[%clk 0:07:45]}
11... Rc8 {[%clk 0:07:38.6]} 12. cxd5 {[%clk 0:07:32.9]} 12... exd5 {[%clk
0:07:29.7]} 13. Qb3 {[%clk 0:07:33]} 13... c6 {[%clk 0:07:08.6]} 14. Bh3 {[%clk
0:06:56.9]} 14... b5 {[%clk 0:06:48.2]} 15. Bg5 {[%clk 0:06:02.3]} 15... Rc7
{[%clk 0:05:32.4]} 16. Nxd7 {[%clk 0:05:49.6]} 16... Rxd7 {[%clk 0:05:31.2]} 17.
Bxf6 {[%clk 0:05:43.7]} 17... Bxf6 {[%clk 0:05:30.5]} 18. Bxd7 {[%clk
0:05:44.3]} 18... Qxd7 {[%clk 0:05:32.4]} 19. e4 {[%clk 0:05:30.6]} 19... Qh3
{[%clk 0:04:22]} 20. e5 {[%clk 0:04:22.1]} 20... Bg5 {[%clk 0:04:14.4]} 21. Qc2
{[%clk 0:04:04.1]} 21... c5 {[%clk 0:03:53.1]} 22. f4 {[%clk 0:03:45.8]} 22...
Be7 {[%clk 0:03:39.9]} 23. Qg2 {[%clk 0:03:39.1]} 23... Qe6 {[%clk 0:03:38.4]}
24. Ne2 {[%clk 0:03:30]} 24... c4 {[%clk 0:03:38]} 25. g4 {[%clk 0:03:30]} 25...
f5 {[%clk 0:03:32.1]} 26. exf6 {[%clk 0:02:42]} 26... Qxf6 {[%clk 0:03:26.7]}
27. Rf1 {[%clk 0:02:30]} 27... Bd8 {[%clk 0:03:00.4]} 28. Rad1 {[%clk 0:02:26]}
28... Bb6 {[%clk 0:03:00.1]} 29. f5 {[%clk 0:02:13.7]} 29... g5 {[%clk
0:02:57.1]} 30. Qf2 {[%clk 0:01:59.4]} 30... Re8 {[%clk 0:02:51.1]} 31. Ng3
{[%clk 0:01:58.2]} 31... Kf7 {[%clk 0:02:32.4]} 32. Kg2 {[%clk 0:01:39.8]} 32...
b4 {[%clk 0:02:09.7]} 33. Rfe1 {[%clk 0:01:28.1]} 33... Bxd4 {[%clk 0:01:54.4]}
34. Rxd4 {[%clk 0:00:55.7]} 34... Rxe1 {[%clk 0:01:51.6]} 35. Qxe1 {[%clk
0:00:57.6]} 35... Qxd4 {[%clk 0:01:52.2]} 36. Qe6+ {[%clk 0:00:58.7]} 36... Kf8
{[%clk 0:00:52.3]} 37. Qd6+ {[%clk 0:00:58]} 37... Kg7 {[%clk 0:00:28.9]} 38.
Qe7+ {[%clk 0:00:39.9]} 38... Kh6 {[%clk 0:00:10.4]} 39. Qe6+ {[%clk 0:00:24.8]}
39... Kg7 {[%clk 0:00:10.2]} 40. f6+ {[%clk 0:00:26.1]} 40... Kg6 {[%clk
0:00:04.6]} 41. f7+ {[%clk 0:00:19.5]} 1-0

[Event "GrandPrix_30.05"]
[Site "Chess.com"]
[Date "2020.05.30"]
[Round "4"]
[White "MikaelyanArman1996"]
[Black "BogdanDeac"]
[Result "0-1"]
[WhiteElo "2362"]
[BlackElo "2544"]
[TimeControl "600+2"]
[EndTime "9:54:32 PDT"]
[Termination "BogdanDeac won on time"]

1. d4 {[%clk 0:09:51.3]} 1... Nf6 {[%clk 0:09:57.8]} 2. c4 {[%clk 0:09:51.5]}
2... e6 {[%clk 0:09:58.4]} 3. Nf3 {[%clk 0:09:52.5]} 3... d5 {[%clk 0:09:59]} 4.
Nc3 {[%clk 0:09:53.2]} 4... c6 {[%clk 0:09:49.7]} 5. g3 {[%clk 0:09:52.4]} 5...
Nbd7 {[%clk 0:09:46]} 6. Bg2 {[%clk 0:09:52.9]} 6... dxc4 {[%clk 0:09:44.6]} 7.
O-O {[%clk 0:09:43.1]} 7... b5 {[%clk 0:09:44.5]} 8. e4 {[%clk 0:09:42.1]} 8...
b4 {[%clk 0:09:41.1]} 9. e5 {[%clk 0:09:22.8]} 9... Nd5 {[%clk 0:09:40.8]} 10.
Ne4 {[%clk 0:09:18.2]} 10... Be7 {[%clk 0:09:41.2]} 11. Nfg5 {[%clk 0:07:00.8]}
11... O-O {[%clk 0:08:53.7]} 12. Qc2 {[%clk 0:06:44.5]} 12... h6 {[%clk
0:08:29.7]} 13. f4 {[%clk 0:05:48.7]} 13... c5 {[%clk 0:06:22.1]} 14. Nf6+
{[%clk 0:04:34.2]} 14... N7xf6 {[%clk 0:04:59.7]} 15. exf6 {[%clk 0:04:33.9]}
15... Nxf6 {[%clk 0:04:02.3]} 16. Bxa8 {[%clk 0:04:33]} 16... hxg5 {[%clk
0:03:51.7]} 17. Qxc4 {[%clk 0:04:10.7]} 17... Qb6 {[%clk 0:03:41]} 18. Bg2
{[%clk 0:02:24]} 18... Ba6 {[%clk 0:03:38.8]} 19. Qb3 {[%clk 0:02:18.3]} 19...
Bxf1 {[%clk 0:03:05.9]} 20. Kxf1 {[%clk 0:02:12]} 20... gxf4 {[%clk 0:02:55.6]}
21. Bxf4 {[%clk 0:01:56]} 21... cxd4 {[%clk 0:02:17.9]} 22. Qd3 {[%clk
0:01:47.2]} 22... Nd7 {[%clk 0:02:12.4]} 23. Rc1 {[%clk 0:01:43.7]} 23... e5
{[%clk 0:02:06.5]} 24. Bd2 {[%clk 0:01:40.3]} 24... Nc5 {[%clk 0:01:38.7]} 25.
Qf5 {[%clk 0:01:11.8]} 25... Qa6+ {[%clk 0:00:40.1]} 26. Kg1 {[%clk 0:01:12.3]}
26... Qe2 {[%clk 0:00:25.7]} 27. Qc2 {[%clk 0:00:30.8]} 27... b3 {[%clk
0:00:24]} 28. axb3 {[%clk 0:00:27.8]} 28... d3 {[%clk 0:00:24.4]} 29. Qc3 {[%clk
0:00:16.1]} 29... Nxb3 {[%clk 0:00:20.7]} 30. Qxb3 {[%clk 0:00:11.2]} 30... Qxd2
{[%clk 0:00:21.7]} 31. Rd1 {[%clk 0:00:11.4]} 31... Qe3+ {[%clk 0:00:19.5]} 32.
Kh1 {[%clk 0:00:12.6]} 32... e4 {[%clk 0:00:20.4]} 33. Qd5 {[%clk 0:00:10.1]}
33... Qe2 {[%clk 0:00:18]} 34. Rf1 {[%clk 0:00:11]} 34... d2 {[%clk 0:00:16.9]}
35. h4 {[%clk 0:00:03.5]} 35... e3 {[%clk 0:00:16.9]} 36. Kh2 {[%clk 0:00:03.7]}
36... Qe1 {[%clk 0:00:16.9]} 37. Kh3 {[%clk 0:00:04.1]} 37... e2 {[%clk
0:00:17.4]} 38. Rxe1 {[%clk 0:00:03.3]} 38... dxe1=Q {[%clk 0:00:18]} 39. Qd7
{[%clk 0:00:04.6]} 39... Qb4 {[%clk 0:00:18.2]} 40. h5 {[%clk 0:00:05]} 40...
e1=Q {[%clk 0:00:18.7]} 0-1

[Event "GrandPrix_30.05"]
[Site "Chess.com"]
[Date "2020.05.30"]
[Round "4"]
[White "chessfreak35"]
[Black "SuperFineHipster"]
[Result "1-0"]
[WhiteElo "2445"]
[BlackElo "2190"]
[TimeControl "600+2"]
[EndTime "9:54:32 PDT"]
[Termination "chessfreak35 won on time"]

1. e4 {[%clk 0:10:01.9]} 1... c5 {[%clk 0:10:00.5]} 2. Nf3 {[%clk 0:10:03.3]}
2... d6 {[%clk 0:10:01.7]} 3. d4 {[%clk 0:10:04.9]} 3... cxd4 {[%clk 0:10:03.6]}
4. Nxd4 {[%clk 0:10:05.9]} 4... Nf6 {[%clk 0:10:05.2]} 5. Nc3 {[%clk 0:10:07.5]}
5... a6 {[%clk 0:10:06.7]} 6. h4 {[%clk 0:10:08.4]} 6... b5 {[%clk 0:09:39.8]}
7. a4 {[%clk 0:10:05.7]} 7... b4 {[%clk 0:09:36.4]} 8. Nd5 {[%clk 0:10:06.9]}
8... e6 {[%clk 0:09:20.3]} 9. Nxf6+ {[%clk 0:09:33]} 9... Qxf6 {[%clk 0:09:21]}
10. Bg5 {[%clk 0:08:54.7]} 10... Qe5 {[%clk 0:09:18.5]} 11. Bd3 {[%clk
0:08:55.1]} 11... Nd7 {[%clk 0:08:41.1]} 12. Be3 {[%clk 0:08:23.8]} 12... Bb7
{[%clk 0:08:33.6]} 13. f4 {[%clk 0:08:21.5]} 13... Qf6 {[%clk 0:08:22.1]} 14. f5
{[%clk 0:07:59.6]} 14... Nc5 {[%clk 0:07:58.8]} 15. O-O {[%clk 0:07:51.3]} 15...
Qxh4 {[%clk 0:07:37.8]} 16. fxe6 {[%clk 0:07:51.1]} 16... fxe6 {[%clk
0:07:30.4]} 17. Qd2 {[%clk 0:07:30.8]} 17... Be7 {[%clk 0:05:15.6]} 18. Qxb4
{[%clk 0:07:21]} 18... Rb8 {[%clk 0:04:25.6]} 19. Rf4 {[%clk 0:04:39.5]} 19...
Qg3 {[%clk 0:03:52.1]} 20. Rf3 {[%clk 0:04:28.4]} 20... Qh4 {[%clk 0:03:18.1]}
21. Bxa6 {[%clk 0:03:01.1]} 21... Bf6 {[%clk 0:02:26.5]} 22. Bb5+ {[%clk
0:02:21.5]} 22... Ke7 {[%clk 0:02:25]} 23. e5 {[%clk 0:01:56.9]} 23... Bxf3
{[%clk 0:00:25.9]} 24. exf6+ {[%clk 0:01:55.9]} 24... Kxf6 {[%clk 0:00:13.7]}
25. Rf1 {[%clk 0:01:54.4]} 25... Kg6 {[%clk 0:00:11.3]} 26. Rxf3 {[%clk
0:01:51]} 26... Rhf8 {[%clk 0:00:11.7]} 27. Bf2 {[%clk 0:00:58.3]} 27... Qe4
{[%clk 0:00:06.8]} 28. Rg3+ {[%clk 0:00:48.4]} 28... Kf7 {[%clk 0:00:05.8]} 29.
Re3 {[%clk 0:00:43.6]} 29... Qg4 {[%clk 0:00:05.5]} 30. Qe1 {[%clk 0:00:37.2]}
30... Kg8 {[%clk 0:00:06.2]} 31. Nxe6 {[%clk 0:00:27.9]} 31... Nxe6 {[%clk
0:00:06.9]} 32. Rxe6 {[%clk 0:00:28.6]} 32... Rb7 {[%clk 0:00:04.8]} 33. Re8
{[%clk 0:00:22.5]} 33... Rf7 {[%clk 0:00:05.7]} 34. Rxf8+ {[%clk 0:00:23.6]}
34... Rxf8 {[%clk 0:00:07.2]} 35. a5 {[%clk 0:00:22.8]} 35... Qf5 {[%clk
0:00:07.1]} 36. Bd3 {[%clk 0:00:21.8]} 36... Qd5 {[%clk 0:00:04.9]} 37. a6
{[%clk 0:00:22.2]} 37... Kh8 {[%clk 0:00:05.9]} 38. a7 {[%clk 0:00:23.4]} 38...
Qa2 {[%clk 0:00:05.6]} 39. b3 {[%clk 0:00:22.4]} 39... d5 {[%clk 0:00:05.3]} 40.
Bd4 {[%clk 0:00:21.2]} 40... Qa3 {[%clk 0:00:05.7]} 41. Qa1 {[%clk 0:00:13.5]}
1-0

[Event "GrandPrix_30.05"]
[Site "Chess.com"]
[Date "2020.05.30"]
[Round "4"]
[White "switlave"]
[Black "Haapana"]
[Result "1-0"]
[WhiteElo "2258"]
[BlackElo "2361"]
[TimeControl "600+2"]
[EndTime "9:54:32 PDT"]
[Termination "switlave won on time"]

1. d4 {[%clk 0:09:59]} 1... d5 {[%clk 0:09:58.3]} 2. Bf4 {[%clk 0:09:59.4]} 2...
c5 {[%clk 0:09:55.7]} 3. e3 {[%clk 0:10:00.1]} 3... Nc6 {[%clk 0:08:44.1]} 4. c3
{[%clk 0:10:00.4]} 4... Qb6 {[%clk 0:08:33.6]} 5. Qb3 {[%clk 0:10:00.1]} 5... c4
{[%clk 0:07:40.3]} 6. Qc2 {[%clk 0:09:59.8]} 6... Bf5 {[%clk 0:06:50.1]} 7. Qxf5
{[%clk 0:09:59.2]} 7... Qxb2 {[%clk 0:06:50.2]} 8. Qxd5 {[%clk 0:09:59.4]} 8...
Qxa1 {[%clk 0:06:49.3]} 9. Qb5 {[%clk 0:10:00.1]} 9... O-O-O {[%clk 0:06:34.3]}
10. Bxc4 {[%clk 0:09:36.7]} 10... e5 {[%clk 0:06:33.1]} 11. Bxe5 {[%clk
0:08:31.1]} 11... Bb4 {[%clk 0:06:16]} 12. Bd3 {[%clk 0:07:01.7]} 12... Bxc3+
{[%clk 0:05:59.5]} 13. Ke2 {[%clk 0:06:22]} 13... Nge7 {[%clk 0:04:51.8]} 14.
Nxc3 {[%clk 0:04:36.9]} 14... Qxc3 {[%clk 0:04:48.5]} 15. Nf3 {[%clk 0:04:37.4]}
15... f6 {[%clk 0:03:48]} 16. Rb1 {[%clk 0:04:14.6]} 16... Rd7 {[%clk
0:03:37.7]} 17. Bg3 {[%clk 0:04:03.4]} 17... Qa5 {[%clk 0:03:25.1]} 18. Qb3
{[%clk 0:03:08.8]} 18... Nd5 {[%clk 0:03:15.5]} 19. Rc1 {[%clk 0:03:00.2]} 19...
Nb4 {[%clk 0:03:07]} 20. a3 {[%clk 0:02:00.2]} 20... Na6 {[%clk 0:00:50.9]} 21.
Nd2 {[%clk 0:01:07]} 21... Re8 {[%clk 0:00:37]} 22. Kd1 {[%clk 0:00:56.2]} 22...
Qb6 {[%clk 0:00:14]} 23. Qxb6 {[%clk 0:00:51.7]} 23... axb6 {[%clk 0:00:14.2]}
24. Bxa6 {[%clk 0:00:52.2]} 24... bxa6 {[%clk 0:00:13.7]} 25. Rxc6+ {[%clk
0:00:52.8]} 25... Kb7 {[%clk 0:00:15.3]} 26. Rc3 {[%clk 0:00:50.2]} 26... g5
{[%clk 0:00:09.7]} 27. Nc4 {[%clk 0:00:47.4]} 27... Re6 {[%clk 0:00:10.8]} 28.
Kd2 {[%clk 0:00:43.7]} 28... Rc6 {[%clk 0:00:09.1]} 29. Kd3 {[%clk 0:00:43.3]}
29... Rd5 {[%clk 0:00:08.3]} 30. e4 {[%clk 0:00:35.3]} 30... Rd7 {[%clk
0:00:05.2]} 31. d5 {[%clk 0:00:31.9]} 31... Rc5 {[%clk 0:00:06.4]} 32. f3 {[%clk
0:00:26.1]} 32... h5 {[%clk 0:00:05]} 33. Bf2 {[%clk 0:00:25.3]} 33... Rb5
{[%clk 0:00:06]} 34. a4 {[%clk 0:00:18.8]} 34... Rb4 {[%clk 0:00:06.5]} 35. a5
{[%clk 0:00:18.8]} 35... b5 {[%clk 0:00:04.1]} 36. Nb6 {[%clk 0:00:19.4]} 36...
Rc7 {[%clk 0:00:05.6]} 37. Rxc7+ {[%clk 0:00:19.7]} 37... Kxc7 {[%clk
0:00:07.2]} 38. Bc5 {[%clk 0:00:19.1]} 38... Rb2 {[%clk 0:00:06.5]} 39. d6+
{[%clk 0:00:18.9]} 39... Kd8 {[%clk 0:00:07]} 40. Bd4 {[%clk 0:00:20]} 40...
Rxg2 {[%clk 0:00:05.4]} 41. Bxf6+ {[%clk 0:00:21.1]} 41... Ke8 {[%clk
0:00:03.5]} 42. d7+ {[%clk 0:00:22.6]} 1-0